[Event "Late-Titled-Tuesday-Blitz-October-24-2023"]
[Site "Chess.com"]
[Date "2023.10.24"]
[Round "3"]
[White "Felix-Rose"]
[Black "katharinareinecke"]
[Result "1-0"]
[WhiteElo "2322"]
[BlackElo "1879"]
[TimeControl "180+1"]
[EndTime "14:29:47 PDT"]
[Termination "Felix-Rose won on time"]

1. e4 {[%clk 0:03:00.2]} 1... c6 {[%clk 0:02:59.6]} 2. d4 {[%clk 0:03:00.4]}
2... d5 {[%clk 0:03:00.1]} 3. e5 {[%clk 0:03:00.9]} 3... Bf5 {[%clk 0:02:59.7]}
4. h4 {[%clk 0:03:01.2]} 4... h5 {[%clk 0:02:57.6]} 5. Bd3 {[%clk 0:03:01.3]}
5... Bxd3 {[%clk 0:02:57]} 6. Qxd3 {[%clk 0:03:02]} 6... e6 {[%clk 0:02:57.6]}
7. Bg5 {[%clk 0:03:02.1]} 7... Qb6 {[%clk 0:02:56.6]} 8. Nd2 {[%clk 0:03:02.4]}
8... c5 {[%clk 0:02:52.6]} 9. c4 {[%clk 0:03:02.4]} 9... Ne7 {[%clk 0:02:45.4]}
10. Ngf3 {[%clk 0:03:01]} 10... Nbc6 {[%clk 0:02:44.3]} 11. O-O {[%clk
0:02:54.6]} 11... cxd4 {[%clk 0:02:44.1]} 12. Bxe7 {[%clk 0:02:19.7]} 12... Bxe7
{[%clk 0:02:40]} 13. cxd5 {[%clk 0:02:19.7]} 13... exd5 {[%clk 0:02:36.9]} 14.
e6 {[%clk 0:02:19.1]} 14... O-O-O {[%clk 0:02:07.3]} 15. exf7 {[%clk 0:01:58]}
15... Rdf8 {[%clk 0:02:07]} 16. Rac1 {[%clk 0:01:56.5]} 16... Kb8 {[%clk
0:02:02.8]} 17. Qf5 {[%clk 0:01:54]} 17... Bf6 {[%clk 0:01:57.3]} 18. Qxd5
{[%clk 0:01:45.9]} 18... Rd8 {[%clk 0:01:36.3]} 19. Qf5 {[%clk 0:01:40.5]} 19...
Rdf8 {[%clk 0:01:29.8]} 20. Nc4 {[%clk 0:01:36.4]} 20... Qd8 {[%clk 0:01:19.7]}
21. b4 {[%clk 0:01:22.3]} 21... Rxf7 {[%clk 0:01:11.1]} 22. b5 {[%clk
0:01:19.8]} 22... Ne7 {[%clk 0:01:03.1]} 23. Qe6 {[%clk 0:01:01.8]} 23... Rff8
{[%clk 0:00:46.8]} 24. Nd6 {[%clk 0:00:54]} 24... Nd5 {[%clk 0:00:43.4]} 25.
Qxd5 {[%clk 0:00:51.2]} 25... Qd7 {[%clk 0:00:32.4]} 26. Ne5 {[%clk 0:00:40.2]}
26... Bxe5 {[%clk 0:00:26.2]} 27. Qxe5 {[%clk 0:00:40.3]} 27... Rf6 {[%clk
0:00:17.7]} 28. Ne8+ {[%clk 0:00:32]} 28... Ka8 {[%clk 0:00:11.5]} 29. Nxf6
{[%clk 0:00:32.2]} 29... gxf6 {[%clk 0:00:10.7]} 30. Qxf6 {[%clk 0:00:32.1]}
30... Rg8 {[%clk 0:00:10.4]} 31. Rfd1 {[%clk 0:00:22.1]} 31... Rxg2+ {[%clk
0:00:09.4]} 32. Kxg2 {[%clk 0:00:18.7]} 32... Qg4+ {[%clk 0:00:09.5]} 33. Kf1
{[%clk 0:00:19.4]} 33... Qh3+ {[%clk 0:00:08.9]} 34. Ke1 {[%clk 0:00:19.2]}
34... Qh1+ {[%clk 0:00:08.5]} 35. Kd2 {[%clk 0:00:19.8]} 35... Qe4 {[%clk
0:00:05.8]} 36. Qf8+ {[%clk 0:00:19.9]} 36... Qe8 {[%clk 0:00:03.8]} 37. Rc8+
{[%clk 0:00:19.9]} 1-0

[Event "Late-Titled-Tuesday-Blitz-October-24-2023"]
[Site "Chess.com"]
[Date "2023.10.24"]
[Round "3"]
[White "mbojan"]
[Black "Kostukov_Alex"]
[Result "1-0"]
[WhiteElo "2776"]
[BlackElo "2431"]
[TimeControl "180+1"]
[EndTime "14:29:50 PDT"]
[Termination "mbojan won on time"]

1. Nf3 {[%clk 0:02:55.1]} 1... c5 {[%clk 0:02:58.4]} 2. g3 {[%clk 0:02:55.3]}
2... g6 {[%clk 0:02:58.6]} 3. Bg2 {[%clk 0:02:55.8]} 3... Bg7 {[%clk 0:02:59.4]}
4. O-O {[%clk 0:02:55.9]} 4... Nf6 {[%clk 0:03:00.1]} 5. c3 {[%clk 0:02:55.3]}
5... O-O {[%clk 0:02:59.9]} 6. d4 {[%clk 0:02:55.7]} 6... cxd4 {[%clk
0:02:57.5]} 7. Nxd4 {[%clk 0:02:55.9]} 7... Nc6 {[%clk 0:02:55.8]} 8. Nd2 {[%clk
0:02:55.5]} 8... d5 {[%clk 0:02:52.9]} 9. Nxc6 {[%clk 0:02:51.6]} 9... bxc6
{[%clk 0:02:52.3]} 10. Nb3 {[%clk 0:02:52.2]} 10... e5 {[%clk 0:02:48.2]} 11. c4
{[%clk 0:02:46.5]} 11... Rb8 {[%clk 0:02:22]} 12. Bg5 {[%clk 0:02:43.2]} 12...
e4 {[%clk 0:01:57.3]} 13. cxd5 {[%clk 0:02:24.1]} 13... cxd5 {[%clk 0:01:57.3]}
14. Be3 {[%clk 0:02:24.1]} 14... a5 {[%clk 0:01:48.6]} 15. Qd2 {[%clk
0:02:22.9]} 15... a4 {[%clk 0:01:47.4]} 16. Nd4 {[%clk 0:02:20.7]} 16... Ng4
{[%clk 0:01:38.6]} 17. Bf4 {[%clk 0:02:08.4]} 17... Ne5 {[%clk 0:01:16.2]} 18.
b3 {[%clk 0:01:42.2]} 18... Qb6 {[%clk 0:01:10.1]} 19. e3 {[%clk 0:01:35.5]}
19... Ba6 {[%clk 0:01:05.1]} 20. Rfc1 {[%clk 0:01:35.5]} 20... axb3 {[%clk
0:00:58.2]} 21. axb3 {[%clk 0:01:34]} 21... Rbc8 {[%clk 0:00:44.3]} 22. Bxe5
{[%clk 0:01:02.6]} 22... Bxe5 {[%clk 0:00:41.3]} 23. Rd1 {[%clk 0:00:58]} 23...
Bd3 {[%clk 0:00:36.8]} 24. Bf1 {[%clk 0:00:55.6]} 24... Bxd4 {[%clk 0:00:20.5]}
25. exd4 {[%clk 0:00:55.8]} 25... Bxf1 {[%clk 0:00:19.6]} 26. Kxf1 {[%clk
0:00:55.9]} 26... Rc6 {[%clk 0:00:16.6]} 27. Rac1 {[%clk 0:00:38.7]} 27... Rxc1
{[%clk 0:00:13.5]} 28. Rxc1 {[%clk 0:00:39.6]} 28... Qxb3 {[%clk 0:00:12.7]} 29.
Rc5 {[%clk 0:00:39.2]} 29... Ra8 {[%clk 0:00:08.3]} 30. Qe3 {[%clk 0:00:27.9]}
30... Qxe3 {[%clk 0:00:07.6]} 31. fxe3 {[%clk 0:00:28.8]} 31... Rd8 {[%clk
0:00:07.4]} 32. g4 {[%clk 0:00:27.7]} 32... Kg7 {[%clk 0:00:07.8]} 33. Kf2
{[%clk 0:00:28]} 33... Kf6 {[%clk 0:00:07.8]} 34. Kg3 {[%clk 0:00:28.7]} 34...
Ke6 {[%clk 0:00:07.9]} 35. Kf4 {[%clk 0:00:27.2]} 35... f6 {[%clk 0:00:07.7]}
36. h4 {[%clk 0:00:25.4]} 36... h6 {[%clk 0:00:07]} 37. Rc6+ {[%clk 0:00:19.9]}
37... Rd6 {[%clk 0:00:07.1]} 38. Rc8 {[%clk 0:00:19.4]} 38... g5+ {[%clk
0:00:06.2]} 39. Kg3 {[%clk 0:00:20]} 39... Rb6 {[%clk 0:00:05]} 40. Rh8 {[%clk
0:00:17.7]} 40... Rb3 {[%clk 0:00:03.8]} 41. Kf2 {[%clk 0:00:18.2]} 41... gxh4
{[%clk 0:00:02.3]} 42. Rxh6 {[%clk 0:00:18.1]} 42... Rb2+ {[%clk 0:00:02.8]} 43.
Kf1 {[%clk 0:00:18.4]} 43... Rh2 {[%clk 0:00:02.3]} 44. g5 {[%clk 0:00:18.2]}
1-0

[Event "Late-Titled-Tuesday-Blitz-October-24-2023"]
[Site "Chess.com"]
[Date "2023.10.24"]
[Round "3"]
[White "WPWPWP-2015"]
[Black "GMKrikor"]
[Result "0-1"]
[WhiteElo "2578"]
[BlackElo "2827"]
[TimeControl "180+1"]
[EndTime "14:29:52 PDT"]
[Termination "GMKrikor won by resignation"]

1. e4 {[%clk 0:03:00.9]} 1... e6 {[%clk 0:02:55.7]} 2. d4 {[%clk 0:03:00.1]}
2... d5 {[%clk 0:02:54.2]} 3. Nc3 {[%clk 0:03:00.6]} 3... Nf6 {[%clk 0:02:53.5]}
4. Bg5 {[%clk 0:02:59.6]} 4... dxe4 {[%clk 0:02:54]} 5. Nxe4 {[%clk 0:02:58.6]}
5... Be7 {[%clk 0:02:54.5]} 6. Nc3 {[%clk 0:02:58.9]} 6... h6 {[%clk 0:02:35.7]}
7. Be3 {[%clk 0:02:52.9]} 7... a6 {[%clk 0:02:25.3]} 8. g3 {[%clk 0:02:49.5]}
8... Nd5 {[%clk 0:02:18.4]} 9. Nxd5 {[%clk 0:02:44.5]} 9... Qxd5 {[%clk
0:02:18.2]} 10. Qf3 {[%clk 0:02:44.1]} 10... Nd7 {[%clk 0:01:44.9]} 11. Bg2
{[%clk 0:02:43.5]} 11... Nf6 {[%clk 0:01:39.8]} 12. Ne2 {[%clk 0:02:40.4]} 12...
c6 {[%clk 0:01:31.9]} 13. O-O {[%clk 0:02:33.9]} 13... O-O {[%clk 0:01:26.6]}
14. Nf4 {[%clk 0:02:21.7]} 14... Qb5 {[%clk 0:01:13.4]} 15. b3 {[%clk
0:02:14.4]} 15... e5 {[%clk 0:01:09]} 16. Nh5 {[%clk 0:01:50.5]} 16... exd4
{[%clk 0:01:04.2]} 17. Nxf6+ {[%clk 0:01:43.5]} 17... Bxf6 {[%clk 0:01:05.1]}
18. Bxh6 {[%clk 0:01:10.8]} 18... Qf5 {[%clk 0:01:04.4]} 19. Bf4 {[%clk
0:00:53.9]} 19... Qxc2 {[%clk 0:01:03.1]} 20. Rae1 {[%clk 0:00:41.3]} 20... Qg6
{[%clk 0:00:56.3]} 21. Bd6 {[%clk 0:00:36]} 21... Bg4 {[%clk 0:00:46.1]} 22. Qf4
{[%clk 0:00:34.9]} 22... Rfe8 {[%clk 0:00:40.6]} 23. f3 {[%clk 0:00:20.3]} 23...
Be6 {[%clk 0:00:36.4]} 24. Be5 {[%clk 0:00:15.5]} 24... Bxe5 {[%clk 0:00:33.9]}
25. Rxe5 {[%clk 0:00:16.4]} 25... Rad8 {[%clk 0:00:34.1]} 26. Rg5 {[%clk
0:00:12.4]} 26... Qh6 {[%clk 0:00:32.2]} 27. Rd1 {[%clk 0:00:02.9]} 27... f6
{[%clk 0:00:28.4]} 28. Rc5 {[%clk 0:00:02.8]} 28... Qxf4 {[%clk 0:00:28.2]} 29.
gxf4 {[%clk 0:00:03.7]} 29... Rd6 {[%clk 0:00:21.4]} 30. Kf2 {[%clk 0:00:03.7]}
30... Red8 {[%clk 0:00:21.2]} 31. Bf1 {[%clk 0:00:03.9]} 31... b6 {[%clk
0:00:20.4]} 32. Rc2 {[%clk 0:00:03.1]} 32... a5 {[%clk 0:00:20.9]} 33. Rcd2
{[%clk 0:00:02.9]} 33... c5 {[%clk 0:00:21.3]} 34. Bd3 {[%clk 0:00:02.6]} 34...
Rd5 {[%clk 0:00:19.8]} 35. Kg3 {[%clk 0:00:02.5]} 35... Rh5 {[%clk 0:00:19.9]}
36. Bb5 {[%clk 0:00:01.8]} 36... Rh3+ {[%clk 0:00:19]} 37. Kg2 {[%clk
0:00:02.1]} 37... Kf7 {[%clk 0:00:16.2]} 38. Rf2 {[%clk 0:00:02.4]} 38... Rdh8
{[%clk 0:00:15.6]} 39. Be2 {[%clk 0:00:01.9]} 39... Rxh2+ {[%clk 0:00:15.2]} 40.
Kg1 {[%clk 0:00:02]} 40... Rh1+ {[%clk 0:00:15.3]} 41. Kg2 {[%clk 0:00:02.6]}
41... R8h2+ {[%clk 0:00:14.7]} 42. Kg3 {[%clk 0:00:03]} 42... Rxf2 {[%clk
0:00:13.9]} 43. Re1 {[%clk 0:00:02.8]} 43... Rxe1 {[%clk 0:00:13.5]} 0-1

[Event "Late-Titled-Tuesday-Blitz-October-24-2023"]
[Site "Chess.com"]
[Date "2023.10.24"]
[Round "3"]
[White "ArtemDyachuk"]
[Black "MikaelyanArman"]
[Result "0-1"]
[WhiteElo "2639"]
[BlackElo "2916"]
[TimeControl "180+1"]
[EndTime "14:29:59 PDT"]
[Termination "MikaelyanArman won on time"]

1. e4 {[%clk 0:03:00.9]} 1... e5 {[%clk 0:02:59.4]} 2. Nf3 {[%clk 0:03:00.6]}
2... Nc6 {[%clk 0:02:59.7]} 3. Bc4 {[%clk 0:03:00.5]} 3... Bc5 {[%clk
0:02:59.3]} 4. c3 {[%clk 0:03:00.1]} 4... d6 {[%clk 0:02:59.6]} 5. O-O {[%clk
0:02:59.2]} 5... Nf6 {[%clk 0:02:58.7]} 6. d3 {[%clk 0:02:59.2]} 6... O-O {[%clk
0:02:58.4]} 7. Bg5 {[%clk 0:02:54.8]} 7... h6 {[%clk 0:02:58.3]} 8. Bh4 {[%clk
0:02:54.2]} 8... g5 {[%clk 0:02:54.5]} 9. Bg3 {[%clk 0:02:53.8]} 9... Bb6 {[%clk
0:02:33.3]} 10. Bb3 {[%clk 0:02:47.5]} 10... Ne7 {[%clk 0:02:26.2]} 11. Nbd2
{[%clk 0:02:43.8]} 11... Ng6 {[%clk 0:02:26.4]} 12. Bc2 {[%clk 0:02:39]} 12...
Nh5 {[%clk 0:02:14.5]} 13. Kh1 {[%clk 0:02:37.1]} 13... g4 {[%clk 0:02:11.7]}
14. Ng1 {[%clk 0:02:36.2]} 14... Qg5 {[%clk 0:02:07.8]} 15. Nc4 {[%clk
0:02:29.3]} 15... Nhf4 {[%clk 0:01:57.1]} 16. Ne2 {[%clk 0:02:28]} 16... h5
{[%clk 0:01:56]} 17. f3 {[%clk 0:01:56.6]} 17... h4 {[%clk 0:01:54.5]} 18. Bxf4
{[%clk 0:01:52]} 18... exf4 {[%clk 0:01:51.9]} 19. Ng1 {[%clk 0:01:45.7]} 19...
h3 {[%clk 0:01:50.5]} 20. gxh3 {[%clk 0:01:36.5]} 20... g3 {[%clk 0:01:50.6]}
21. Qd2 {[%clk 0:01:26.5]} 21... Be3 {[%clk 0:01:39]} 22. Nxe3 {[%clk
0:01:23.6]} 22... fxe3 {[%clk 0:01:39.9]} 23. Qg2 {[%clk 0:01:22.1]} 23... Kg7
{[%clk 0:01:16.8]} 24. Qxg3 {[%clk 0:01:20.8]} 24... Qh5 {[%clk 0:01:10.5]} 25.
f4 {[%clk 0:01:10.1]} 25... f5 {[%clk 0:01:10.6]} 26. Qxe3 {[%clk 0:01:09.2]}
26... Bd7 {[%clk 0:01:08.2]} 27. e5 {[%clk 0:01:05.3]} 27... Bc6+ {[%clk
0:01:05.7]} 28. Nf3 {[%clk 0:01:03.2]} 28... Nh4 {[%clk 0:01:06.1]} 29. Bd1
{[%clk 0:00:57.1]} 29... Kh7 {[%clk 0:01:05.5]} 30. Rg1 {[%clk 0:00:52.2]} 30...
Nxf3 {[%clk 0:00:55.9]} 31. Rg3 {[%clk 0:00:46.6]} 31... Rg8 {[%clk 0:00:43.3]}
32. Rxf3 {[%clk 0:00:26.9]} 32... Qxh3 {[%clk 0:00:43]} 33. Qf2 {[%clk
0:00:26.9]} 33... Rg4 {[%clk 0:00:36.3]} 34. Be2 {[%clk 0:00:19.7]} 34... Rag8
{[%clk 0:00:36.3]} 35. exd6 {[%clk 0:00:10.8]} 35... Rxf4 {[%clk 0:00:29]} 36.
Rf1 {[%clk 0:00:09.4]} 36... cxd6 {[%clk 0:00:22.1]} 37. d4 {[%clk 0:00:07]}
37... Be4 {[%clk 0:00:19.6]} 38. d5 {[%clk 0:00:03.7]} 38... Rg5 {[%clk
0:00:19.4]} 39. c4 {[%clk 0:00:03.1]} 39... Rh5 {[%clk 0:00:14.8]} 40. Rg1
{[%clk 0:00:03.1]} 40... Rxf3 {[%clk 0:00:13.4]} 41. Bxf3 {[%clk 0:00:03.2]}
41... Qxf3+ {[%clk 0:00:13.9]} 42. Rg2 {[%clk 0:00:02.9]} 42... Qxf2 {[%clk
0:00:13.3]} 0-1

[Event "Late-Titled-Tuesday-Blitz-October-24-2023"]
[Site "Chess.com"]
[Date "2023.10.24"]
[Round "3"]
[White "zivicd"]
[Black "KorolDimitriy75"]
[Result "0-1"]
[WhiteElo "2070"]
[BlackElo "2350"]
[TimeControl "180+1"]
[EndTime "14:29:59 PDT"]
[Termination "KorolDimitriy75 won by resignation"]

1. c4 {[%clk 0:03:00.9]} 1... c5 {[%clk 0:03:00.1]} 2. Nc3 {[%clk 0:03:00.7]}
2... g6 {[%clk 0:03:00.7]} 3. Nf3 {[%clk 0:03:00.6]} 3... Bg7 {[%clk 0:03:01.3]}
4. g3 {[%clk 0:03:01]} 4... Nc6 {[%clk 0:03:01.3]} 5. Bg2 {[%clk 0:03:01.3]}
5... Nh6 {[%clk 0:03:02]} 6. d4 {[%clk 0:02:56.1]} 6... cxd4 {[%clk 0:03:01.6]}
7. Nxd4 {[%clk 0:02:50.9]} 7... Nxd4 {[%clk 0:02:53.8]} 8. Bxh6 {[%clk
0:02:49.8]} 8... Bxh6 {[%clk 0:02:50.7]} 9. Qxd4 {[%clk 0:02:48.3]} 9... O-O
{[%clk 0:02:51.3]} 10. O-O {[%clk 0:02:47.5]} 10... Bg7 {[%clk 0:02:45.1]} 11.
Qd3 {[%clk 0:02:45.1]} 11... d6 {[%clk 0:02:44.4]} 12. Rfd1 {[%clk 0:02:40.5]}
12... Bf5 {[%clk 0:02:35.6]} 13. e4 {[%clk 0:02:39.8]} 13... Be6 {[%clk
0:02:35.1]} 14. b3 {[%clk 0:02:29.4]} 14... Qa5 {[%clk 0:02:32.5]} 15. Rac1
{[%clk 0:02:13.8]} 15... Rab8 {[%clk 0:02:20.7]} 16. a4 {[%clk 0:02:12.7]} 16...
Rfc8 {[%clk 0:02:17.8]} 17. h3 {[%clk 0:02:09.8]} 17... a6 {[%clk 0:02:15.9]}
18. Nd5 {[%clk 0:01:53]} 18... Bxd5 {[%clk 0:02:14.1]} 19. cxd5 {[%clk
0:01:32.3]} 19... Rc5 {[%clk 0:02:04]} 20. Rxc5 {[%clk 0:01:25.8]} 20... Qxc5
{[%clk 0:02:04.9]} 21. Qc4 {[%clk 0:01:15.1]} 21... Rc8 {[%clk 0:01:37.6]} 22.
Rc1 {[%clk 0:01:13.7]} 22... Bd4 {[%clk 0:01:21.3]} 23. Qxc5 {[%clk 0:01:12.8]}
23... Bxc5 {[%clk 0:01:11.9]} 24. Kh2 {[%clk 0:01:03.4]} 24... Rb8 {[%clk
0:01:02]} 25. Bf1 {[%clk 0:01:02.2]} 25... Bxf2 {[%clk 0:00:52.8]} 26. Rc7
{[%clk 0:00:57.9]} 26... Kf8 {[%clk 0:00:51.8]} 27. b4 {[%clk 0:00:47.5]} 27...
Ke8 {[%clk 0:00:45]} 28. b5 {[%clk 0:00:47.2]} 28... a5 {[%clk 0:00:27.6]} 29.
Rc2 {[%clk 0:00:43.7]} 29... Bc5 {[%clk 0:00:27.1]} 30. Kg2 {[%clk 0:00:43.8]}
30... Kd7 {[%clk 0:00:25.7]} 31. Kf3 {[%clk 0:00:43.5]} 31... Rf8 {[%clk
0:00:24.3]} 32. Bd3 {[%clk 0:00:43.1]} 32... b6 {[%clk 0:00:21.7]} 33. g4 {[%clk
0:00:42.8]} 33... e6 {[%clk 0:00:19.5]} 34. Bc4 {[%clk 0:00:41.7]} 34... Ke7
{[%clk 0:00:19.1]} 35. Rc1 {[%clk 0:00:40.5]} 35... e5 {[%clk 0:00:16.6]} 36.
Bd3 {[%clk 0:00:36.4]} 36... Kf6 {[%clk 0:00:14.6]} 37. h4 {[%clk 0:00:35.5]}
37... h6 {[%clk 0:00:13.7]} 38. Rf1 {[%clk 0:00:34.4]} 38... Kg7 {[%clk
0:00:13]} 39. Kg3 {[%clk 0:00:31.6]} 39... f6 {[%clk 0:00:11]} 40. h5 {[%clk
0:00:30.7]} 40... Rc8 {[%clk 0:00:09.4]} 41. Kf3 {[%clk 0:00:20.5]} 41... Bd4
{[%clk 0:00:08.6]} 42. Ke2 {[%clk 0:00:17.1]} 42... Rc3 {[%clk 0:00:08]} 43.
hxg6 {[%clk 0:00:16.9]} 43... Kxg6 {[%clk 0:00:07.7]} 44. Rb1 {[%clk 0:00:15.6]}
44... Kg5 {[%clk 0:00:07.1]} 45. Rd1 {[%clk 0:00:15.2]} 45... Kxg4 {[%clk
0:00:06.5]} 46. Rg1+ {[%clk 0:00:14.8]} 46... Bxg1 {[%clk 0:00:06.1]} 0-1

[Event "Late-Titled-Tuesday-Blitz-October-24-2023"]
[Site "Chess.com"]
[Date "2023.10.24"]
[Round "3"]
[White "stasOR4ik"]
[Black "expii"]
[Result "1-0"]
[WhiteElo "2383"]
[BlackElo "2233"]
[TimeControl "180+1"]
[EndTime "14:30:00 PDT"]
[Termination "stasOR4ik won by checkmate"]

1. e4 {[%clk 0:03:00.9]} 1... c5 {[%clk 0:02:59.5]} 2. c3 {[%clk 0:03:00.8]}
2... d6 {[%clk 0:02:59]} 3. d4 {[%clk 0:03:00.8]} 3... cxd4 {[%clk 0:02:56.5]}
4. cxd4 {[%clk 0:03:01.7]} 4... Nf6 {[%clk 0:02:55.7]} 5. Nc3 {[%clk 0:03:02.4]}
5... g6 {[%clk 0:02:52.6]} 6. Bc4 {[%clk 0:02:57.1]} 6... Bg7 {[%clk 0:02:48.1]}
7. Nf3 {[%clk 0:02:53.7]} 7... O-O {[%clk 0:02:47.2]} 8. O-O {[%clk 0:02:52.3]}
8... Nc6 {[%clk 0:02:46.4]} 9. Re1 {[%clk 0:02:45.4]} 9... e5 {[%clk 0:02:43.8]}
10. dxe5 {[%clk 0:02:33.8]} 10... dxe5 {[%clk 0:02:33]} 11. Bg5 {[%clk
0:02:33.8]} 11... Qxd1 {[%clk 0:02:26.3]} 12. Raxd1 {[%clk 0:02:33.2]} 12... Bg4
{[%clk 0:02:24.9]} 13. Nd5 {[%clk 0:01:53]} 13... Nxd5 {[%clk 0:01:51.8]} 14.
Bxd5 {[%clk 0:01:48.1]} 14... Nd4 {[%clk 0:01:47.1]} 15. Rd3 {[%clk 0:01:40.9]}
15... Bxf3 {[%clk 0:01:30]} 16. gxf3 {[%clk 0:01:40.1]} 16... Kh8 {[%clk
0:01:29.3]} 17. Kg2 {[%clk 0:01:34]} 17... f6 {[%clk 0:01:04.4]} 18. Be3 {[%clk
0:01:25.2]} 18... Rab8 {[%clk 0:01:01.7]} 19. Bxd4 {[%clk 0:01:20]} 19... exd4
{[%clk 0:01:00.5]} 20. Rxd4 {[%clk 0:01:19.2]} 20... f5 {[%clk 0:01:00.8]} 21.
Ra4 {[%clk 0:01:10.6]} 21... Bxb2 {[%clk 0:00:52.8]} 22. Rb1 {[%clk 0:01:04.9]}
22... Be5 {[%clk 0:00:41.7]} 23. Rxa7 {[%clk 0:01:03.6]} 23... fxe4 {[%clk
0:00:39.3]} 24. Bxe4 {[%clk 0:01:00.4]} 24... b6 {[%clk 0:00:37.5]} 25. Rd1
{[%clk 0:00:50.9]} 25... Rfd8 {[%clk 0:00:36.1]} 26. Rad7 {[%clk 0:00:45.5]}
26... Rxd7 {[%clk 0:00:34.2]} 27. Rxd7 {[%clk 0:00:46.4]} 27... Rc8 {[%clk
0:00:31.6]} 28. h4 {[%clk 0:00:41.1]} 28... Rf8 {[%clk 0:00:28.8]} 29. h5 {[%clk
0:00:40.2]} 29... Rf6 {[%clk 0:00:23.6]} 30. Kh3 {[%clk 0:00:17.8]} 30... Kg8
{[%clk 0:00:18.2]} 31. hxg6 {[%clk 0:00:15.7]} 31... hxg6 {[%clk 0:00:17.7]} 32.
Kg4 {[%clk 0:00:16.2]} 32... Bf4 {[%clk 0:00:10]} 33. Rb7 {[%clk 0:00:13.7]}
33... Be5 {[%clk 0:00:08.3]} 34. Kg5 {[%clk 0:00:13.5]} 34... Rd6 {[%clk
0:00:08.5]} 35. Bxg6 {[%clk 0:00:12.8]} 35... Bf6+ {[%clk 0:00:08.4]} 36. Kf5
{[%clk 0:00:11.9]} 36... Bd4 {[%clk 0:00:07.8]} 37. Bf7+ {[%clk 0:00:10]} 37...
Kf8 {[%clk 0:00:07.4]} 38. Bc4 {[%clk 0:00:09.3]} 38... Bc5 {[%clk 0:00:07.8]}
39. Ke5 {[%clk 0:00:08.9]} 39... Ke8 {[%clk 0:00:08.3]} 40. f4 {[%clk
0:00:09.1]} 40... Kd8 {[%clk 0:00:08.6]} 41. f5 {[%clk 0:00:09.3]} 41... Kc8
{[%clk 0:00:08.9]} 42. Rh7 {[%clk 0:00:09]} 42... Kd8 {[%clk 0:00:08.8]} 43. f4
{[%clk 0:00:08]} 43... Ke8 {[%clk 0:00:07.3]} 44. Bd5 {[%clk 0:00:08.1]} 44...
Kf8 {[%clk 0:00:07]} 45. f6 {[%clk 0:00:08.2]} 45... Rd8 {[%clk 0:00:01.2]} 46.
Rh8# {[%clk 0:00:08]} 1-0

[Event "Late-Titled-Tuesday-Blitz-October-24-2023"]
[Site "Chess.com"]
[Date "2023.10.24"]
[Round "3"]
[White "Msb2"]
[Black "NikolaGry"]
[Result "1-0"]
[WhiteElo "3086"]
[BlackElo "2725"]
[TimeControl "180+1"]
[EndTime "14:30:03 PDT"]
[Termination "Msb2 won on time"]

1. d4 {[%clk 0:02:39.5]} 1... g6 {[%clk 0:02:57.9]} 2. c4 {[%clk 0:02:39.2]}
2... Bg7 {[%clk 0:02:57.7]} 3. e4 {[%clk 0:02:38.5]} 3... c5 {[%clk 0:02:56.8]}
4. d5 {[%clk 0:02:37.3]} 4... Qa5+ {[%clk 0:02:55.9]} 5. Bd2 {[%clk 0:02:35.2]}
5... Qb6 {[%clk 0:02:55]} 6. Nc3 {[%clk 0:02:35.4]} 6... d6 {[%clk 0:02:48.9]}
7. Qc2 {[%clk 0:02:33.9]} 7... Nf6 {[%clk 0:02:45.4]} 8. Bd3 {[%clk 0:02:31.7]}
8... O-O {[%clk 0:02:38.7]} 9. h3 {[%clk 0:02:31.8]} 9... Na6 {[%clk 0:02:38]}
10. a3 {[%clk 0:02:30.9]} 10... e6 {[%clk 0:02:33.9]} 11. Nf3 {[%clk 0:02:26.6]}
11... exd5 {[%clk 0:02:33.2]} 12. exd5 {[%clk 0:02:27.5]} 12... Re8+ {[%clk
0:02:32.2]} 13. Be3 {[%clk 0:02:28.2]} 13... Qd8 {[%clk 0:02:01.9]} 14. O-O
{[%clk 0:02:25.8]} 14... Nc7 {[%clk 0:01:52.9]} 15. a4 {[%clk 0:02:23.3]} 15...
Na6 {[%clk 0:01:51.6]} 16. Qd2 {[%clk 0:02:23.2]} 16... Nb4 {[%clk 0:01:50.3]}
17. Bb1 {[%clk 0:02:23.9]} 17... Nh5 {[%clk 0:01:42.5]} 18. Ra3 {[%clk
0:02:23.7]} 18... a6 {[%clk 0:01:39.4]} 19. Bg5 {[%clk 0:02:23.5]} 19... Qc7
{[%clk 0:01:33.1]} 20. g4 {[%clk 0:02:23.7]} 20... Nf6 {[%clk 0:01:32]} 21. Qf4
{[%clk 0:02:24.4]} 21... Nd7 {[%clk 0:01:19.1]} 22. Ne4 {[%clk 0:02:24.7]} 22...
f6 {[%clk 0:01:04.1]} 23. Nxf6+ {[%clk 0:02:21.2]} 23... Bxf6 {[%clk 0:00:53.6]}
24. Bxf6 {[%clk 0:02:22.1]} 24... Rf8 {[%clk 0:00:53.8]} 25. g5 {[%clk
0:02:19.2]} 25... Nxf6 {[%clk 0:00:53.6]} 26. gxf6 {[%clk 0:02:20.1]} 26... Qd8
{[%clk 0:00:53.8]} 27. Re1 {[%clk 0:02:13]} 27... Rxf6 {[%clk 0:00:49.8]} 28.
Re8+ {[%clk 0:02:05.7]} 28... Qxe8 {[%clk 0:00:49.5]} 29. Qxf6 {[%clk
0:02:06.3]} 29... Qf8 {[%clk 0:00:44.7]} 30. Qxf8+ {[%clk 0:02:04.7]} 30... Kxf8
{[%clk 0:00:44.5]} 31. Ng5 {[%clk 0:02:04.7]} 31... Bd7 {[%clk 0:00:34.9]} 32.
Rf3+ {[%clk 0:02:04.4]} 32... Kg8 {[%clk 0:00:33.7]} 33. Ne4 {[%clk 0:02:04.9]}
33... Bxa4 {[%clk 0:00:27.6]} 34. Nxd6 {[%clk 0:02:05.3]} 34... b5 {[%clk
0:00:27.7]} 35. Ne4 {[%clk 0:02:03.2]} 35... bxc4 {[%clk 0:00:24.6]} 36. Nxc5
{[%clk 0:02:03.4]} 36... Bb5 {[%clk 0:00:24.9]} 37. d6 {[%clk 0:02:03.8]} 37...
Rd8 {[%clk 0:00:23]} 38. Ne6 {[%clk 0:02:02.5]} 38... Re8 {[%clk 0:00:20.5]} 39.
Re3 {[%clk 0:01:54.3]} 39... Nd5 {[%clk 0:00:20.2]} 40. Nc7 {[%clk 0:01:37.7]}
40... Nxe3 {[%clk 0:00:17.6]} 41. Nxe8 {[%clk 0:01:37.7]} 41... Bxe8 {[%clk
0:00:17.5]} 42. fxe3 {[%clk 0:01:38.1]} 42... Kf7 {[%clk 0:00:17.7]} 43. Ba2
{[%clk 0:01:35.1]} 43... Bb5 {[%clk 0:00:16.8]} 44. Kf2 {[%clk 0:01:13.6]} 44...
Ke6 {[%clk 0:00:16.6]} 45. Kf3 {[%clk 0:01:08.8]} 45... Kxd6 {[%clk 0:00:16.5]}
46. Kf4 {[%clk 0:01:09.7]} 46... h6 {[%clk 0:00:14.6]} 47. h4 {[%clk 0:01:09.8]}
47... Kc5 {[%clk 0:00:13.8]} 48. Bb1 {[%clk 0:01:10.2]} 48... Be8 {[%clk
0:00:11.7]} 49. Ke5 {[%clk 0:01:05.5]} 49... a5 {[%clk 0:00:11.7]} 50. e4 {[%clk
0:01:05.2]} 50... a4 {[%clk 0:00:11]} 51. Bc2 {[%clk 0:01:01.5]} 51... Kb4
{[%clk 0:00:08.9]} 52. Kd4 {[%clk 0:01:00.1]} 52... g5 {[%clk 0:00:07.2]} 53.
hxg5 {[%clk 0:01:01]} 53... hxg5 {[%clk 0:00:07.2]} 54. Bd1 {[%clk 0:00:58.2]}
54... c3 {[%clk 0:00:04.1]} 55. bxc3+ {[%clk 0:00:58.4]} 55... Ka5 {[%clk
0:00:04.4]} 56. c4 {[%clk 0:00:51.3]} 56... Kb4 {[%clk 0:00:03.4]} 57. Bxa4
{[%clk 0:00:47.5]} 57... Bxa4 {[%clk 0:00:02.2]} 58. Ke5 {[%clk 0:00:45.9]} 1-0